fUSD/lending_fUSD_20260308
["ID","MTS","AMOUNT","RATE_DAILY","PERIOD"]
[407965153,1772945432555,-500.0,0.00015492,2]
[407965154,1772945432564,-500.0,0.00015492,2]
[407965155,1772945432574,-500.0,0.00015492,2]
[407965156,1772945432583,-500.0,0.00015492,2]
[407965157,1772945432592,-500.0,0.00015492,2]
[407965158,1772945432601,-500.0,0.00015492,2]
[407965159,1772945432611,-500.0,0.00015492,2]
[407965160,1772945432620,-500.0,0.00015492,2]
[407965161,1772945432629,-500.0,0.00015492,2]
[407965162,1772945432638,-500.0,0.00015492,2]
[407965163,1772945432648,-1198.15968638,0.00015493,2]
[407965164,1772945432660,-45616.80969012,0.00015493,2]
[407965165,1772945432671,-873.20778669,0.00015493,2]
[407965166,1772945432683,-1186.8261432,0.00015493,2]
[407965167,1772945432698,-1965.03170025,0.00015493,2]
[407965170,1772945437908,-500.0,0.00014381,2]
[407965171,1772945437917,-14631.20934822,0.00015493,2]
[407965172,1772945437929,-1927.34743552,0.00015493,2]
[407965173,1772945437941,-1576.67087792,0.00015493,2]
[407965174,1772945437964,-1277.27139037,0.00015493,2]
[407965175,1772945437976,-1653.34241829,0.00015493,2]
[407965176,1772945438021,-2020.0,0.00015493,2]
[407965240,1772945440135,-83543.82407554,0.00015493,2]
[407965241,1772945440147,-52653.06518398,0.00015493,2]
[407965242,1772945440475,-1425.82817633,0.00015493,2]
[407965243,1772945440514,-6414.63429761,0.00015493,2]
[407965244,1772945440525,-509.65562623,0.00015493,2]
[407965249,1772945442848,-5706.705,0.00015493,2]
[407965250,1772945442902,-8390.1359229,0.00015493,2]
[407965251,1772945443065,-789.33731939,0.00015493,2]
[407965252,1772945443122,-662.02618603,0.00015493,2]
[407965253,1772945443134,-339.04628129,0.00015493,2]
[407965257,1772945445714,-6506.00362237,0.00015493,2]
[407965258,1772945445977,-5025.91549434,0.00015493,2]
[407965260,1772945518181,150.0,0.00014975,120]
[407965262,1772945872767,186.69,7.21e-05,2]
[407965263,1772945872975,186.69,9.614e-05,2]
[407965264,1772945976831,1226.56,0.00011501,2]
[407965267,1772946138244,-476.87,0.00011722,2]
[407965268,1772946138266,-250.0,0.00011722,2]
[407965269,1772946138286,-246.0,0.00011722,2]
[407965270,1772946138311,-186.69,0.00012017,2]
[407965271,1772946138333,-250.0,0.0001288,2]
[407965272,1772946138357,-590.44,0.00012893,2]
[407965273,1772946140312,-609.56,0.00012893,2]
[407965274,1772946140334,-300.0,0.00012893,2]
[407965275,1772946140356,-1090.44,0.00012894,2]
[407965276,1772946140792,-2000.0,0.00012894,2]
[407965277,1772946141144,-1909.56,0.00012894,2]
[407965278,1772946141168,-90.44,0.00012894,2]
[407965279,1772946141783,-103.18959799,0.00012894,2]
[407965280,1772946141804,-250.0,0.00012894,2]
[407965281,1772946141824,-568.42800531,0.00012894,2]
[407965282,1772946141848,-250.0,0.00012894,2]
[407965283,1772946141869,-241.71,0.000137,2]
[407965316,1772946632265,-386.116815,0.00013964,7]
[407965318,1772946632275,-300.0,0.00013982,2]
[407965320,1772946632284,-153.89,0.00014,2]
[407965323,1772946632294,-200.0,0.00014069,2]
[407965326,1772946632303,-249.72543445,0.00014124,2]
[407965329,1772946632311,-150.0,0.00014282,2]
[407965332,1772946632320,-645.7,0.00014304,2]
[407965335,1772946632329,-1200.0,0.00014308,2]
[407965338,1772946632338,-3925.56775055,0.00014309,2]
[407965342,1772946632349,-5260.77224945,0.00014309,2]
[407965345,1772946632358,-153.89,0.00014339,2]
[407965348,1772946632370,-166.66,0.00014396,2]
[407965351,1772946632380,-186.69,0.0001442,2]
[407965353,1772946632389,-474.0,0.0001461,2]
[407965356,1772946632400,-284.0,0.00014633,2]
[407965358,1772946632410,-645.7,0.00014661,2]
[407965360,1772946632420,-790.0,0.00014662,2]
[407965362,1772946632429,-153.89,0.00014678,2]
[407965364,1772946632438,-166.66,0.00014699,2]
[407965366,1772946632447,-387.0,0.00014721,2]
[407965368,1772946632456,-612.0,0.00014742,2]
[407965370,1772946632465,-268.0,0.00014751,2]
[407965371,1772946632474,-215.54120638,0.00014771,2]
[407965372,1772946632486,-156.45879362,0.00014771,2]
[407965373,1772946632496,-306.0,0.00014771,2]
[407965374,1772946632506,-630.0,0.00014801,2]
[407965375,1772946632515,-339.31,0.00014889,2]
[407965376,1772946632525,-329.23,0.00014889,2]
[407965377,1772946632534,-150.0,0.00014975,2]
[407965378,1772946632543,-250.0,0.00015,2]
[407965379,1772946632553,-166.66,0.00015002,2]
[407965380,1772946632562,-153.89,0.00015017,2]
[407965381,1772946632572,-645.7,0.00015019,2]
[407965382,1772946632581,-932.6790491,0.0001518,2]
[407965383,1772946632590,-300.0,0.0001518,2]
[407965384,1772946632599,-169.88960279,0.000152,2]
[407965385,1772946632609,-150.0,0.00015209,2]
[407965386,1772946632620,-150.0,0.00015209,2]
[407965387,1772946632631,-150.0,0.00015209,2]
[407965388,1772946632640,-153.6550558,0.00015209,2]
[407965389,1772946632649,-151.64112789,0.00015209,2]
[407965390,1772946632658,-150.0,0.00015209,2]
[407965391,1772946632669,-500.0,0.0001522,2]
[407965392,1772946632679,-500.0,0.0001522,2]
[407965393,1772946632689,-503.61030139,0.0001522,5]
[407965394,1772946632698,-2163.16953686,0.00015263,2]
[407965395,1772946632709,-582.46046314,0.00015263,2]
[407965396,1772946632719,-150.0,0.00015264,2]
[407965397,1772946632728,-150.0,0.00015264,2]
[407965398,1772946632737,-150.0,0.00015264,2]
[407965399,1772946632746,-151.0,0.00015268,2]
[407965400,1772946632755,-151.0,0.00015268,2]
[407965401,1772946632763,-151.0,0.00015268,2]
[407965402,1772946632777,-151.0,0.00015268,2]
[407965403,1772946632786,-2257.65725136,0.00015271,2]
[407965404,1772946632797,-500.0,0.00015271,2]
[407965405,1772946632808,-214669.73544864,0.00015271,2]
[407965406,1772946632817,-1403.21204333,0.00015272,2]
[407965407,1772946632826,-297.6259,0.00015272,2]
[407965408,1772946632836,-502.86209366,0.00015273,2]
[407965409,1772946632845,-500.52920308,0.00015273,2]
[407965410,1772946632854,-500.99472326,0.00015273,2]
[407965411,1772946632863,-502.85987646,0.00015273,2]
[407965412,1772946632872,-501.01899879,0.00015273,2]
[407965413,1772946632881,-501.5406921,0.00015273,2]
[407965414,1772946632890,-500.92195077,0.00015273,2]
[407965415,1772946632899,-500.0,0.00015273,2]
[407965416,1772946632908,-501.50183732,0.00015273,2]
[407965417,1772946632917,-504.10436762,0.00015273,2]
[407965418,1772946632926,-504.26526581,0.00015273,2]
[407965419,1772946632935,-500.66375409,0.00015273,2]
[407965420,1772946632944,-501.61890659,0.00015273,2]
[407965421,1772946632954,-501.37517415,0.00015273,2]
[407965422,1772946632963,-331.86630007,0.00015273,2]
[407965423,1772946632971,-500.0,0.00015273,2]
[407965424,1772946632981,-752.07152354,0.00015273,2]
[407965425,1772946632990,-756.52475635,0.00015273,2]
[407965426,1772946632999,-46090.16922361,0.00015273,2]
[407965427,1772946633008,-26236.07872452,0.00015273,2]
[407965428,1772946633017,-729.33618058,0.00015273,2]
[407965429,1772946633026,-377.19034911,0.00015273,2]
[407965430,1772946633035,-197.13766539,0.00015293,2]
[407965431,1772946633044,-9064.89614288,0.00015293,2]
[407965432,1772946633053,-1603.5556773,0.00015293,2]
[407965433,1772946633062,-1216.22037812,0.00015293,2]
[407965434,1772946633071,-183.07748017,0.00015293,2]
[407965435,1772946633080,-151.14490724,0.000153,2]
[407965436,1772946633089,-155.04468105,0.000153,2]
[407965437,1772946633098,-155.76048056,0.000153,2]
[407965438,1772946633107,-166.66,0.00015305,2]
[407965439,1772946633116,-200.0,0.00015306,2]
[407965440,1772946633125,-150.0,0.00015319,2]
[407965441,1772946633134,-200.0,0.00015319,2]
[407965442,1772946633143,-246.68097798,0.00015319,2]
[407965443,1772946633154,-151.0,0.00015339,2]
[407965444,1772946633163,-2000.0,0.0001534,2]
[407965445,1772946633172,-2000.0,0.0001534,2]
[407965446,1772946633182,-884.911124,0.00015341,2]
[407965447,1772946633190,-309.0,0.00015342,2]
[407965448,1772946633200,-5700.0,0.00015342,2]
[407965449,1772946633209,-222.73732785,0.00015347,2]
[407965450,1772946633218,-2000.0,0.0001535,2]
[407965451,1772946633227,-153.89,0.00015357,2]
[407965452,1772946633236,-300.0,0.0001536,2]
[407965453,1772946633245,-926.7615856,0.00015361,2]
[407965454,1772946633254,-331.02534478,0.00015362,2]
[407965455,1772946633263,-2745.63,0.00015362,2]
[407965456,1772946633272,-151.0,0.00015369,2]
[407965457,1772946633282,-4952.51704909,0.00015371,2]
[407965458,1772946633291,-356.0,0.00015371,2]
[407965459,1772946633300,-151.0,0.00015371,2]
[407965460,1772946633309,-151.0,0.00015371,2]
[407965461,1772946633317,-151.0,0.00015371,2]
[407965462,1772946633326,-169.1038227,0.00015371,2]
[407965463,1772946633335,-500.0,0.00015371,2]
[407965464,1772946633344,-204.62455495,0.00015371,2]
[407965465,1772946633357,-500.0,0.00015371,2]
[407965466,1772946633365,-498.96115874,0.00015371,2]
[407965467,1772946633375,-2925.0,0.00015372,2]
[407965468,1772946633384,-151.0,0.00015372,2]
[407965469,1772946633393,-151.0,0.00015372,2]
[407965470,1772946633402,-409.118743,0.00015372,2]
[407965471,1772946633411,-409.118743,0.00015372,2]
[407965472,1772946633420,-409.118743,0.00015372,2]
[407965473,1772946633430,-409.118743,0.00015372,2]
[407965474,1772946633439,-151.0,0.00015372,2]
[407965475,1772946633448,-151.0,0.00015372,2]
[407965476,1772946633457,-151.0,0.00015372,2]
[407965477,1772946633467,-151.0,0.00015372,2]
[407965478,1772946633475,-151.0,0.00015372,2]
[407965479,1772946633484,-151.0,0.00015372,2]
[407965480,1772946633494,-151.0,0.00015372,2]
[407965481,1772946633503,-209299.09151132,0.00015372,2]
[407965482,1772946633514,-48751.69022119,0.00015372,2]
[407965483,1772946633526,-94045.30639486,0.00015372,2]
[407965484,1772946633540,-1254.41808677,0.00015372,2]
[407965485,1772946633551,-810.59415021,0.00015372,2]
[407965486,1772946633562,-487.0242411,0.00015372,2]
[407965487,1772946633573,-336.37939,0.00015372,2]
[407965488,1772946633583,-6727.27509278,0.00015372,2]
[407965489,1772946633597,-1623.11679656,0.00015372,2]
[407965490,1772946633608,-805.74439359,0.00015372,2]
[407965491,1772946633622,-1230.22,0.00015372,2]
[407965495,1772946637982,-1500.0,0.0001453,2]
[407965496,1772946637992,-500.0,0.0001527,2]
[407965497,1772946638001,-558.46823195,0.0001527,2]
[407965498,1772946638010,-558.46823195,0.0001527,2]
[407965499,1772946638021,-500.0,0.0001527,2]
[407965500,1772946638031,-558.46823195,0.0001527,2]
[407965501,1772946638039,-558.46823195,0.0001527,2]
[407965502,1772946638049,-479.09264322,0.0001527,2]
[407965503,1772946638058,-558.46823195,0.0001527,2]
[407965504,1772946638068,-558.46823195,0.0001527,2]
[407965505,1772946638077,-558.46823195,0.0001527,2]
[407965506,1772946638086,-558.46823195,0.0001527,2]
[407965507,1772946638096,-558.46823195,0.0001527,2]
[407965508,1772946638105,-558.46823195,0.0001527,2]
[407965509,1772946638115,-558.46823195,0.0001527,2]
[407965510,1772946638126,-558.46823195,0.0001527,2]
[407965511,1772946638136,-558.46823195,0.0001527,2]
[407965512,1772946638147,-558.46823195,0.0001527,2]
[407965513,1772946638157,-558.46823195,0.0001527,2]
[407965514,1772946638166,-558.46823195,0.0001527,2]
[407965515,1772946638176,-558.46823195,0.0001527,2]
[407965516,1772946638187,-558.46823195,0.0001527,2]
[407965517,1772946638196,-558.46823195,0.0001527,2]
[407965518,1772946638205,-558.46823195,0.0001527,2]
[407965519,1772946638214,-558.46823195,0.0001527,2]
[407965520,1772946638224,-558.46823195,0.0001527,2]
[407965521,1772946638233,-558.46823195,0.0001527,2]
[407965522,1772946638242,-558.46823195,0.0001527,2]
[407965523,1772946638251,-558.46823195,0.0001527,2]
[407965524,1772946638260,-558.46823195,0.0001527,2]
[407965525,1772946638272,-558.46823195,0.0001527,2]
[407965526,1772946638281,-558.46823195,0.0001527,2]
[407965527,1772946638291,-558.46823195,0.0001527,2]
[407965528,1772946638300,-558.46823195,0.0001527,2]
[407965529,1772946638311,-558.46823195,0.0001527,2]
[407965531,1772946638320,-558.46823195,0.0001527,2]
[407965533,1772946638330,-558.46823195,0.0001527,2]
[407965535,1772946638339,-558.46823195,0.0001527,2]
[407965537,1772946638349,-558.46823195,0.0001527,2]
[407965539,1772946638359,-558.46823195,0.0001527,2]
[407965541,1772946638369,-558.46823195,0.0001527,2]
[407965544,1772946638378,-558.46823195,0.0001527,2]
[407965548,1772946638388,-558.46823195,0.0001527,2]
[407965551,1772946638398,-558.46823195,0.0001527,2]
[407965555,1772946638407,-558.46823195,0.0001527,2]
[407965558,1772946638417,-558.46823195,0.0001527,2]
[407965561,1772946638426,-558.46823195,0.0001527,2]
[407965564,1772946638435,-558.46823195,0.0001527,2]
[407965567,1772946638445,-558.46823195,0.0001527,2]
[407965570,1772946638454,-558.46823195,0.0001527,2]
[407965573,1772946638464,-558.46823195,0.0001527,2]
[407965576,1772946638473,-558.46823195,0.0001527,2]
[407965578,1772946638483,-558.46823195,0.0001527,2]
[407965580,1772946638492,-558.46823195,0.0001527,2]
[407965582,1772946638501,-558.46823195,0.0001527,2]
[407965584,1772946638511,-558.46823195,0.0001527,2]
[407965586,1772946638521,-558.46823195,0.0001527,2]
[407965588,1772946638531,-558.46823195,0.0001527,2]
[407965590,1772946638540,-558.46823195,0.0001527,2]
[407965592,1772946638549,-1723929.49362162,0.00015372,2]
[407965594,1772946638559,-546.28334596,0.00015373,2]
[407965596,1772946638568,-511.10230728,0.00015373,2]
[407965598,1772946638577,-548.30957419,0.00015373,2]
[407965600,1772946638586,-501.72589372,0.00015373,2]
[407965602,1772946638595,-501.16014456,0.00015373,2]
[407965604,1772946638604,-500.0,0.00015373,2]
[407965606,1772946638613,-500.83318842,0.00015373,2]
[407965608,1772946638625,-500.0,0.00015373,2]
[407965610,1772946638634,-501.60917986,0.00015373,2]
[407965612,1772946638644,-501.39367096,0.00015373,2]
[407965614,1772946638653,-502.82905957,0.00015373,2]
[407965616,1772946638664,-500.0,0.00015373,2]
[407965618,1772946638674,-280.59868952,0.00015373,2]
[407965620,1772946638683,-150.0,0.00015373,2]
[407965622,1772946638694,-645.7,0.00015376,2]
[407965624,1772946638704,-200.0,0.00015382,2]
[407965626,1772946638714,-500.0,0.00015382,2]
[407965628,1772946638724,-500.0,0.00015382,2]
[407965630,1772946638734,-500.0,0.00015382,2]
[407965632,1772946638743,-500.0,0.00015382,2]
[407965634,1772946638752,-500.0,0.00015382,2]
[407965636,1772946638761,-500.0,0.00015382,2]
[407965638,1772946638771,-500.0,0.00015382,2]
[407965640,1772946638781,-500.0,0.00015382,2]
[407965642,1772946638790,-500.0,0.00015382,2]
[407965643,1772946638799,-500.0,0.00015382,2]
[407965644,1772946638810,-151.0,0.00015382,2]
[407965645,1772946638819,-151.0,0.00015382,2]
[407965646,1772946638828,-151.0,0.00015382,2]
[407965647,1772946638838,-151.0,0.00015382,2]
[407965648,1772946638847,-151.0,0.00015382,2]
[407965649,1772946638857,-151.0,0.00015382,2]
[407965650,1772946638868,-500.0,0.00015382,2]
[407965651,1772946638878,-151.0,0.00015382,2]
[407965652,1772946638888,-500.0,0.00015382,2]
[407965653,1772946638897,-151.0,0.00015382,2]
[407965654,1772946638906,-500.0,0.00015382,2]
[407965655,1772946638915,-151.0,0.00015382,2]
[407965656,1772946638924,-377.3597684,0.00015382,2]
[407965657,1772946638934,-151.0,0.00015382,2]
[407965658,1772946638943,-151.0,0.00015382,2]
[407965659,1772946638951,-151.0,0.00015382,2]
[407965660,1772946638961,-151.0,0.00015382,2]
[407965661,1772946638970,-151.0,0.00015382,2]
[407965662,1772946638979,-151.0,0.00015382,2]
[407965663,1772946638989,-151.0,0.00015382,2]
[407965664,1772946638999,-151.0,0.00015382,2]
[407965665,1772946639008,-151.0,0.00015382,2]
[407965666,1772946639018,-151.0,0.00015382,2]
[407965667,1772946639027,-151.0,0.00015382,2]
[407965668,1772946639037,-151.0,0.00015382,2]
[407965669,1772946639046,-151.0,0.00015382,2]
[407965670,1772946639056,-151.0,0.00015382,2]
[407965671,1772946639067,-151.0,0.00015382,2]
[407965672,1772946639076,-151.0,0.00015382,2]
[407965673,1772946639086,-151.0,0.00015382,2]
[407965674,1772946639094,-151.0,0.00015382,2]
[407965675,1772946639103,-151.0,0.00015382,2]
[407965676,1772946639112,-151.0,0.00015382,2]
[407965677,1772946639121,-151.0,0.00015382,2]
[407965678,1772946639130,-151.0,0.00015382,2]
[407965679,1772946639139,-151.0,0.00015382,2]
[407965680,1772946639148,-151.0,0.0001539,2]
[407965681,1772946639157,-4794.27129475,0.00015391,2]
[407965682,1772946639166,-360.10251111,0.00015393,2]
[407965683,1772946639175,-9139.9513246,0.00015393,2]
[407965684,1772946639185,-609297.0892964,0.00015393,2]
[407965685,1772946639195,-151.0,0.00015393,2]
[407965686,1772946639205,-151.0,0.00015393,2]
[407965687,1772946639214,-151.0,0.00015393,2]
[407965688,1772946639224,-151.0,0.00015393,2]
[407965689,1772946639234,-409.118743,0.00015393,2]
[407965690,1772946639243,-409.118743,0.00015393,2]
[407965691,1772946639254,-409.118743,0.00015393,2]
[407965692,1772946639264,-409.118743,0.00015393,2]
[407965693,1772946639274,-151.0,0.00015393,2]
[407965694,1772946639283,-151.0,0.00015393,2]
[407965695,1772946639293,-151.0,0.00015393,2]
[407965696,1772946639304,-151.0,0.00015393,2]
[407965697,1772946639313,-185.117156,0.00015393,2]
[407965698,1772946639323,-151.0,0.00015393,2]
[407965699,1772946639332,-205.538195,0.00015393,2]
[407965700,1772946639342,-150.0,0.00015409,2]
[407965701,1772946639350,-150.0,0.00015428,2]
[407965702,1772946639359,-152.46098348,0.00015464,2]
[407965703,1772946639373,-823.46,0.00015471,2]
[407965704,1772946639382,-230.00786375,0.00015473,2]
[407965705,1772946639391,-501.57643635,0.00015473,2]
[407965706,1772946639400,-169.03668171,0.00015473,2]
[407965707,1772946639409,-500.85016995,0.00015473,2]
[407965708,1772946639418,-597.36030405,0.00015473,2]
[407965709,1772946639427,-502.75996908,0.00015473,2]
[407965710,1772946639437,-500.0,0.00015473,2]
[407965711,1772946639446,-500.0,0.00015473,2]
[407965712,1772946639455,-500.0,0.00015473,2]
[407965713,1772946639464,-331.02534478,0.00015481,2]
[407965714,1772946639473,-151.0,0.00015487,2]
[407965715,1772946639482,-154.6401334,0.00015488,2]
[407965716,1772946639491,-500.0,0.0001549,2]
[407965717,1772946639500,-500.0,0.0001549,2]
[407965718,1772946639509,-600.0562129,0.0001549,2]
[407965719,1772946639519,-500.0,0.0001549,2]
[407965720,1772946639528,-500.0,0.0001549,2]
[407965721,1772946639537,-500.0,0.0001549,2]
[407965722,1772946639547,-500.0,0.0001549,2]
[407965723,1772946639556,-500.0,0.0001549,2]
[407965724,1772946639565,-231.1418293,0.0001549,2]
[407965725,1772946639575,-500.0,0.0001549,2]
[407965726,1772946639584,-500.0,0.0001549,2]
[407965727,1772946639593,-500.0,0.0001549,2]
[407965728,1772946639602,-500.0,0.0001549,2]
[407965729,1772946639611,-500.0,0.0001549,2]
[407965730,1772946639624,-500.0,0.0001549,2]
[407965731,1772946639633,-637.43159507,0.0001549,2]
[407965732,1772946639642,-500.0,0.0001549,2]
[407965733,1772946639651,-502.85950902,0.0001549,2]
[407965734,1772946639661,-500.0,0.0001549,2]
[407965735,1772946639670,-500.0,0.0001549,2]
[407965736,1772946639679,-500.0,0.0001549,2]
[407965737,1772946639690,-500.0,0.0001549,2]
[407965738,1772946639699,-500.0,0.0001549,2]
[407965739,1772946639708,-500.0,0.0001549,2]
[407965740,1772946639717,-500.0,0.0001549,2]
[407965741,1772946639726,-500.0,0.0001549,2]
[407965742,1772946639735,-500.0,0.0001549,2]
[407965743,1772946639744,-500.0,0.0001549,2]
[407965744,1772946639753,-500.0,0.0001549,2]
[407965745,1772946639762,-500.0,0.0001549,2]
[407965746,1772946639772,-500.0,0.0001549,2]
[407965747,1772946639781,-500.0,0.0001549,2]
[407965748,1772946639790,-500.0,0.0001549,2]
[407965749,1772946639800,-500.0,0.0001549,2]
[407965750,1772946639810,-500.0,0.0001549,2]
[407965751,1772946639819,-500.0,0.0001549,2]
[407965752,1772946639829,-500.0,0.0001549,2]
[407965753,1772946639839,-500.0,0.0001549,2]
[407965754,1772946639849,-500.0,0.0001549,2]
[407965755,1772946639858,-500.0,0.0001549,2]
[407965756,1772946639867,-500.0,0.0001549,2]
[407965757,1772946639876,-500.0,0.0001549,2]
[407965758,1772946639885,-500.0,0.0001549,2]
[407965759,1772946639895,-500.0,0.0001549,2]
[407965760,1772946639904,-500.0,0.0001549,2]
[407965761,1772946639913,-537.97914568,0.0001549,2]
[407965762,1772946639922,-632753.8870359,0.00015491,2]
[407965764,1772946639932,-163.908,0.00015491,2]
[407965765,1772946639941,-4411.4607217,0.00015491,2]
[407965766,1772946639951,-13424.6082755,0.00015491,2]
[407965767,1772946639960,-151.0,0.00015491,2]
[407965768,1772946639970,-151.0,0.00015491,2]
[407965769,1772946639980,-151.0,0.00015491,2]
[407965770,1772946639990,-151.0,0.00015491,2]
[407965771,1772946640000,-151.0,0.00015491,2]
[407965772,1772946640009,-409.118743,0.00015491,2]
[407965773,1772946640020,-409.118743,0.00015491,2]
[407965774,1772946640030,-409.118743,0.00015491,2]
[407965775,1772946640039,-409.118743,0.00015491,2]
[407965776,1772946640049,-151.0,0.00015491,2]
[407965777,1772946640058,-151.0,0.00015491,2]
[407965778,1772946640068,-151.0,0.00015491,2]
[407965779,1772946640077,-266.525579,0.00015491,2]
[407965780,1772946640088,-151.0,0.00015491,2]
[407965784,1772946640273,-500.0,0.00015492,2]
[407965785,1772946640285,-500.0,0.00015492,2]
[407965786,1772946640295,-500.0,0.00015492,2]
[407965787,1772946640304,-500.0,0.00015492,2]
[407965788,1772946640313,-500.0,0.00015492,2]
[407965789,1772946640323,-500.0,0.00015492,2]
[407965790,1772946640332,-500.0,0.00015492,2]
[407965791,1772946640342,-500.0,0.00015492,2]
[407965792,1772946640351,-500.0,0.00015492,2]
[407965793,1772946640361,-500.0,0.00015492,2]
[407965794,1772946640370,-522.2,0.00015492,2]
[407965795,1772946640380,-522.2,0.00015492,2]
[407965796,1772946640389,-522.2,0.00015492,2]
[407965797,1772946640399,-522.2,0.00015492,2]
[407965798,1772946640408,-522.2,0.00015492,2]
[407965799,1772946640417,-500.0,0.00015492,2]
[407965800,1772946640426,-500.0,0.00015492,2]
[407965801,1772946640436,-500.0,0.00015492,2]
[407965802,1772946640445,-500.0,0.00015492,2]
[407965803,1772946640455,-500.0,0.00015492,2]
[407965804,1772946640464,-500.0,0.00015492,2]
[407965805,1772946640473,-500.0,0.00015492,2]
[407965806,1772946640483,-500.0,0.00015492,2]
[407965807,1772946640492,-500.0,0.00015492,2]
[407965808,1772946640501,-500.0,0.00015492,2]
[407965809,1772946640511,-500.0,0.00015492,2]
[407965810,1772946640520,-500.0,0.00015492,2]
[407965811,1772946640529,-500.0,0.00015492,2]
[407965812,1772946640538,-500.0,0.00015492,2]
[407965813,1772946640548,-500.0,0.00015492,2]
[407965814,1772946640557,-500.0,0.00015492,2]
[407965815,1772946640566,-500.0,0.00015492,2]
[407965816,1772946640575,-500.0,0.00015492,2]
[407965817,1772946640584,-173.92959413,0.00015492,2]
[407965818,1772946640593,-500.0,0.00015492,2]
[407965819,1772946640602,-500.0,0.00015492,2]
[407965820,1772946640611,-500.0,0.00015492,2]
[407965821,1772946640621,-500.0,0.00015492,2]
[407965822,1772946640633,-500.0,0.00015492,2]
[407965823,1772946640642,-500.0,0.00015492,2]
[407965824,1772946640651,-500.0,0.00015492,2]
[407965825,1772946640660,-500.0,0.00015492,2]
[407965826,1772946640671,-500.0,0.00015492,2]
[407965827,1772946640680,-500.0,0.00015492,2]
[407965828,1772946640689,-500.0,0.00015492,2]
[407965829,1772946640701,-500.0,0.00015492,2]
[407965830,1772946640710,-500.0,0.00015492,2]
[407965831,1772946640720,-500.0,0.00015492,2]
[407965832,1772946640729,-500.0,0.00015492,2]
[407965833,1772946640739,-500.0,0.00015492,2]
[407965834,1772946640748,-500.0,0.00015492,2]
[407965835,1772946640757,-500.0,0.00015492,2]
[407965836,1772946640766,-500.0,0.00015492,2]
[407965837,1772946640777,-500.0,0.00015492,2]
[407965838,1772946640785,-500.0,0.00015492,2]
[407965839,1772946640797,-500.0,0.00015492,2]
[407965840,1772946640807,-500.0,0.00015492,2]
[407965841,1772946640816,-500.0,0.00015492,2]
[407965842,1772946640824,-500.0,0.00015492,2]
[407965843,1772946640834,-500.0,0.00015492,2]
[407965844,1772946640843,-500.0,0.00015492,2]
[407965845,1772946640852,-500.0,0.00015492,2]
[407965846,1772946640862,-500.0,0.00015492,2]
[407965847,1772946640871,-500.0,0.00015492,2]
[407965848,1772946640880,-500.0,0.00015492,2]
[407965849,1772946640889,-500.0,0.00015492,2]
[407965850,1772946640898,-500.0,0.00015492,2]
[407965851,1772946640907,-500.0,0.00015492,2]
[407965852,1772946640916,-500.0,0.00015492,2]
[407965853,1772946640926,-500.0,0.00015492,2]
[407965854,1772946640935,-282.1896899,0.00015492,2]
[407965855,1772946640944,-188.12645993,0.00015492,2]
[407965856,1772946640953,-200.0,0.00015493,2]
[407965857,1772946640963,-151.0,0.00015493,2]
[407965858,1772946640972,-278.67196308,0.00015493,2]
[407965859,1772946640981,-2000.0,0.00015493,2]
[407965860,1772946640991,-2000.0,0.00015493,2]
[407965861,1772946641000,-2000.0,0.00015493,2]
[407965862,1772946641009,-172.75071827,0.00015528,7]
[407965863,1772946641018,-500.0,0.00015547,2]